bitfinex/quotes_SOLUSD_20250123
["timestamp","ask_amount","ask_price","bid_price","bid_amount"]
[1737606197507,1.6603,246.91,246.78,0.46768232]
[1737606197508,2.01283125,246.82,246.78,0.46768232]
[1737606197803,2.01283125,246.84,246.78,0.46768232]
[1737606197999,2.01283125,246.82,246.78,0.46768232]
[1737606198191,2.01283125,246.82,246.77,23.776884]
[1737606198397,2.01283125,246.8,246.77,23.776884]
[1737606198695,2.01283125,246.8,246.79,312.0]
[1737606198899,2.01283125,246.8,246.79,335.776884]
[1737606199279,2.01283125,246.82,246.79,335.776884]
[1737606199482,2.01283125,246.84,246.8,23.776884]
[1737606199705,2.01283125,246.84,246.81,0.4677199]
[1737606200084,2.01283125,246.87,246.81,0.4677199]
[1737606200407,2.07583125,246.85,246.81,0.4677199]
[1737606200594,2.01283125,246.83,246.79,4.0519]
[1737606200905,2.01283125,246.81,246.77,4.0522]
[1737606201102,2.01283125,246.81,246.76,20.0]
[1737606201298,2.01283125,246.81,246.78,20.0]
[1737606201496,2.01283125,246.79,246.77,20.0]
[1737606202406,2.01283125,246.79,246.78,312.0]
[1737606202807,2.01283125,246.81,246.78,312.0]
[1737606203003,2.01283125,246.83,246.78,23.776884]
[1737606203700,2.01283125,246.81,246.78,23.776884]
[1737606203904,2.01283125,246.75,246.7,6.1109]
[1737606204203,2.01283125,246.75,246.71,4.0532]
[1737606204409,2.01283125,246.75,246.73,20.0]
[1737606204906,2.01283125,246.77,246.74,23.776884]
[1737606205108,2.01283125,246.77,246.74,27.829684]
[1737606205794,2.01283125,246.75,246.74,23.776884]
[1737606205994,2.01283125,246.75,246.74,312.0]
[1737606206489,2.01283125,246.71,246.68,4.0537]
[1737606206691,2.01283125,246.69,246.62,4.0548]
[1737606207012,2.01283125,246.67,246.62,4.0548]
[1737606207396,2.01283125,246.67,246.64,20.0]
[1737606207895,2.01283125,246.62,246.6,0.03]
[1737606209509,2.01283125,246.62,246.61,312.0]
[1737606210513,2.01283125,246.62,246.49,0.03]
[1737606210514,2.01283125,246.5,246.49,0.03]
[1737606212219,10.12687594,246.5,246.43,20.0]
[1737606212511,10.12687594,246.5,246.41,0.46981464]
[1737606212512,2.01283125,246.5,246.41,0.46981464]
[1737606213231,6.14055931,246.52,246.43,20.0]
[1737606213529,8.15339056,246.52,246.5,312.0]
[1737606213707,6.14055931,246.52,246.5,312.0]
[1737606213907,6.14055931,246.52,246.43,20.0]
[1737606214125,2.01283125,246.52,246.44,0.46965269]
[1737606214321,2.01283125,246.54,246.44,24.24653669]
[1737606214501,2.01283125,246.54,246.47,20.0]
[1737606214698,2.01283125,246.52,246.47,20.0]
[1737606215318,2.01283125,246.5,246.47,20.0]
[1737606215528,2.01283125,246.5,246.44,20.13926547]
[1737606215703,2.01283125,246.5,246.43,1.63824273]
[1737606215907,2.01283125,246.5,246.35,7.53]
[1737606216096,2.01283125,246.5,246.38,7.5]
[1737606216301,2.01283125,246.5,246.42,1.61286752]
[1737606216506,2.01283125,246.5,246.4,7.5]
[1737606217023,2.01283125,246.5,246.49,312.0]
[1737606217641,2.01283125,246.5,246.49,316.0569]
[1737606217799,2.01283125,246.52,246.51,20.0]
[1737606219120,2.01283125,246.52,246.44,23.776884]
[1737606219622,2.01283125,246.5,246.44,23.776884]
[1737606220518,2.01283125,246.5,246.47,20.0]
[1737606220925,2.01283125,246.5,246.49,312.0]
[1737606222203,2.01283125,246.5,246.49,316.0569]
[1737606222506,2.01283125,246.52,246.51,20.0]
[1737606222814,2.01283125,246.52,246.5,20.0]
[1737606224125,2.01283125,246.54,246.5,20.0]
[1737606225131,2.01283125,246.54,246.49,20.0]
[1737606225332,2.01283125,246.54,246.5,4.0567]
[1737606225833,2.01283125,246.54,246.53,312.0]
[1737606226718,2.01283125,246.48,246.47,1.58223801]
[1737606226921,2.01283125,246.48,246.46,24.0573]
[1737606227742,2.01283125,246.48,246.46,4.0573]
[1737606227910,2.01283125,246.44,246.43,1.57345612]
[1737606228113,5.0,246.58,246.4,4.0584]
[1737606228114,2.01283125,246.41,246.4,4.0584]
[1737606228326,2.01283125,246.38,246.36,5.65869969]
[1737606228523,2.01283125,246.38,246.36,4.0591]
[1737606228947,2.01283125,246.36,246.31,4.0598]
[1737606229113,2.01283125,246.36,246.3,4.06]
[1737606229514,2.01283125,246.36,246.35,312.03]
[1737606230131,2.01283125,246.36,246.35,0.03]
[1737606231129,8.30173125,246.36,246.35,0.03]
[1737606231730,2.01283125,246.36,246.35,0.03]
[1737606232137,2.01283125,246.38,246.35,0.03]
[1737606233026,2.01283125,246.38,246.37,312.0]
[1737606233221,2.01283125,246.4,246.37,312.0]
[1737606233436,2.01283125,246.42,246.37,312.0]
[1737606233636,2.01283125,246.42,246.35,0.03]
[1737606233845,2.01283125,246.42,246.37,20.0]
[1737606234148,2.01283125,246.39,246.38,4.0587]
[1737606234841,2.01283125,246.37,246.35,20.03]
[1737606235231,2.01283125,246.37,246.35,0.03]
[1737606236623,2.01283125,246.37,246.36,312.0]
[1737606237329,2.01283125,246.39,246.36,312.0]
[1737606237529,2.01283125,246.39,246.35,4.0892]
[1737606237724,2.01283125,246.39,246.36,20.0]
[1737606237962,6.2889,246.55,246.38,20.0]
[1737606237963,2.01283125,246.42,246.38,20.0]
[1737606238267,2.01283125,246.44,246.38,20.0]
[1737606238758,2.01283125,246.46,246.38,20.0]
[1737606238951,2.01283125,246.46,246.39,43.776884]
[1737606239129,2.01283125,246.47,246.4,4.0584]
[1737606240160,2.01283125,246.4,246.38,20.0]
[1737606240462,2.01283125,246.42,246.41,20.0]
[1737606240966,2.01283125,246.49,246.41,20.0]
[1737606241142,2.01283125,246.49,246.42,4.0581]
[1737606241462,2.01283125,246.49,246.43,20.0]
[1737606242242,2.01283125,246.49,246.45,20.0]
[1737606243236,2.01283125,246.49,246.46,4.0574]
[1737606243852,2.01283125,246.47,246.44,4.0576]
[1737606244058,2.01283125,246.47,246.46,312.0]
[1737606245659,0.30816169,246.5,246.46,316.0574]
[1737606245958,0.30816169,246.48,246.47,20.0]
[1737606246138,0.30816169,246.43,246.37,1.57584004]
[1737606246344,0.30816169,246.45,246.38,4.0587]
[1737606246545,0.30816169,246.45,246.39,23.776884]
[1737606246946,0.30816169,246.43,246.42,20.0]
[1737606247151,0.30816169,246.43,246.38,4.0587]
[1737606247353,0.30816169,246.41,246.38,4.0587]
[1737606247532,0.30816169,246.41,246.38,24.0587]
[1737606247735,0.30816169,246.39,246.38,24.0587]
[1737606248353,0.30816169,246.37,246.35,5.66597206]
[1737606248739,0.30816169,246.39,246.36,312.0]
[1737606248950,0.30816169,246.37,246.36,312.0]
[1737606249650,4.0575,246.46,246.36,312.0]
[1737606249651,0.30816169,246.39,246.36,312.0]
[1737606249966,0.30816169,246.39,246.37,24.0589]
[1737606251234,0.30816169,246.36,246.35,0.03]
[1737606251746,0.30816169,246.36,246.35,20.03]
[1737606252835,0.30816169,246.36,246.35,332.03]
[1737606259357,0.30816169,246.36,246.35,312.03]
[1737606260747,0.30816169,246.36,246.35,0.03]
[1737606266145,1.06942918,246.36,246.35,0.03]
[1737606267068,0.30816169,246.25,246.18,4.062]
[1737606267269,0.30816169,246.25,246.14,4.0626]
[1737606267451,0.30816169,246.25,246.15,4.0625]
[1737606268154,0.30816169,246.25,246.12,20.0]
[1737606268350,0.30816169,246.25,246.17,4.0621]
[1737606269350,0.30816169,246.25,246.18,20.0]
[1737606270066,0.30816169,246.25,246.2,20.0]
[1737606270276,0.30816169,246.25,246.24,312.03]
[1737606270478,0.30816169,246.25,246.24,0.03]
[1737606271159,5.30816169,246.25,246.24,0.03]
[1737606271473,0.30816169,246.25,246.24,0.03]
[1737606271857,5.30816169,246.25,246.24,0.03]
[1737606274069,29.08504569,246.25,246.24,0.03]
[1737606274585,5.30816169,246.25,246.24,0.03]
[1737606274954,29.08504569,246.25,246.24,0.03]
[1737606276465,36.58504569,246.25,246.24,0.03]
[1737606276783,0.30816169,246.1,246.09,5.69750244]
[1737606277289,0.30816169,246.1,246.07,4.0638]
[1737606277459,0.30816169,246.08,246.07,4.0638]
[1737606278865,6.169e-05,246.08,246.07,4.0638]
[1737606280390,6.169e-05,246.08,246.07,316.0638]
[1737606280986,6.169e-05,246.08,246.07,4.0638]
[1737606282389,5.0,246.15,246.04,4.0643]
[1737606282588,9.82430574,246.17,246.01,4.0648]
[1737606282998,5.0,246.16,246.04,20.0]
[1737606283291,4.82430574,246.17,246.04,20.0]
[1737606283499,5.76190005,246.18,246.04,20.0]
[1737606283991,9.82400005,246.18,246.07,0.03]
[1737606284296,5.0,246.15,246.07,0.03]
[1737606284590,5.76196249,246.15,246.07,0.03]
[1737606284767,9.82456249,246.15,246.07,0.03]
[1737606284969,5.0,246.12,246.07,0.03]
[1737606285169,5.76204961,246.14,246.07,0.03]
[1737606287396,9.82474961,246.14,246.07,0.03]
[1737606288373,9.8243204,246.17,246.07,0.03]
[1737606288796,5.0,246.15,246.07,0.03]
[1737606288988,9.8243204,246.17,246.07,0.03]
[1737606289380,5.0,246.15,246.07,0.03]
[1737606289700,4.0625,246.16,246.07,0.03]
[1737606290390,5.76193265,246.15,246.07,0.03]
[1737606290897,9.82443265,246.15,246.07,0.03]
[1737606291597,9.0625,246.15,246.07,0.03]
[1737606293397,24.5388332,246.14,246.07,0.03]
[1737606293702,0.7619492,246.14,246.07,0.03]
[1737606293884,5.0,246.13,246.07,0.03]
[1737606294087,0.76201645,246.12,246.07,0.03]
[1737606294391,13.26201645,246.13,246.07,0.03]
[1737606294579,4.063,246.12,246.07,0.03]
[1737606294782,5.0,246.1,246.07,0.03]
[1737606295087,0.76207301,246.11,246.07,0.03]
[1737606295900,9.82507178,246.12,246.07,0.03]
[1737606296271,9.063,246.12,246.07,0.03]
[1737606298201,0.7620178,246.11,246.07,0.03]
[1737606298400,5.0,246.08,246.07,0.03]
[1737606298587,5.76217971,246.08,246.07,0.03]
[1737606300495,9.82587971,246.08,246.07,0.03]
[1737606300996,33.60276371,246.08,246.07,0.03]
[1737606301297,33.60276371,246.08,246.0,2.0]
[1737606301298,5.0,246.03,246.0,2.0]
[1737606301477,5.0,246.05,246.0,2.0]
[1737606301678,0.76241277,246.06,246.0,2.0]
[1737606301875,5.0,246.04,246.0,2.0]
[1737606302183,5.0,246.02,246.0,2.0]
[1737606302378,4.0648,246.01,246.0,2.0]
[1737606302699,9.0648,246.01,246.0,2.0]
[1737606303001,4.82726822,246.01,246.0,2.0]
[1737606303203,12.5,246.08,246.0,2.0]
[1737606303405,0.76220771,246.07,246.0,2.0]
[1737606304607,4.82610771,246.07,246.0,2.0]
[1737606305210,5.76223394,246.11,246.0,2.0]
[1737606305381,9.82553394,246.11,246.0,6.065]
[1737606306814,9.82553394,246.11,246.1,11.88565699]
[1737606306988,33.60241794,246.11,246.1,11.88565699]
[1737606308118,9.82553394,246.11,246.1,11.88565699]
[1737606308599,20.0,246.08,246.07,0.03]
[1737606308902,20.76221713,246.08,246.07,11.91565699]
[1737606309115,5.0,246.01,246.0,13.88565699]
[1737606309291,0.76223409,246.05,246.0,25.77131398]
[1737606309496,0.76229698,246.1,246.04,11.88565699]
[1737606309693,4.82547404,246.11,246.09,11.88565699]
[1737606310112,7.5,246.13,246.09,11.88565699]
[1737606310113,4.1256,246.15,246.1,11.88565699]
[1737606310301,0.063,246.15,246.14,11.88565699]
[1737606313208,0.82484113,246.15,246.14,11.88565699]
[1737606313794,5.82484113,246.15,246.14,11.88565699]
[1737606314000,4.0627,246.14,246.12,11.88565699]
[1737606314218,0.76203534,246.13,246.12,11.88565699]
[1737606314696,12.32471119,246.14,246.12,11.88565699]
[1737606314892,4.82471119,246.14,246.12,11.88565699]
[1737606315408,0.063,246.15,246.12,11.88565699]
[1737606315611,0.063,246.15,246.14,11.88565699]
[1737606318716,0.063,246.15,246.14,323.88565699]
[1737606319518,0.76153291,246.31,246.17,20.0]
[1737606319720,0.063,246.35,246.3,11.88565699]
[1737606319904,0.063,246.35,246.32,11.88565699]
[1737606320305,0.063,246.35,246.32,23.77131398]
[1737606320505,0.063,246.35,246.32,54.18869798]
[1737606320817,0.063,246.35,246.34,23.77131398]
[1737606321212,0.063,246.4,246.39,11.88565699]
[1737606330822,4.1214,246.4,246.39,11.88565699]
[1737606331937,4.1214,246.4,246.24,11.88565699]
[1737606331938,5.0,246.36,246.24,11.88565699]
[1737606332243,20.0,246.34,246.3,11.88565699]
[1737606332540,0.76132626,246.33,246.3,11.88565699]
[1737606332745,20.0,246.34,246.28,11.88565699]
[1737606332922,20.0,246.35,246.3,11.88565699]
[1737606333114,20.0,246.35,246.32,11.88565699]
[1737606333318,4.0594,246.34,246.32,11.88565699]
[1737606333823,0.76136263,246.33,246.28,11.88565699]
[1737606334029,0.76136263,246.33,246.3,11.88565699]
[1737606334327,34.96928077,246.34,246.3,11.88565699]
[1737606334923,42.46928077,246.34,246.28,11.88565699]
[1737606335123,28.776884,246.33,246.28,11.88565699]
[1737606335340,4.0599,246.31,246.28,11.88565699]
[1737606335930,0.76146995,246.3,246.26,11.88565699]
[1737606336832,0.76146995,246.3,246.2,1.5053]
[1737606336833,7.5,246.28,246.24,11.88565699]
[1737606337143,5.0,246.26,246.2,11.88565699]
[1737606337355,5.0,246.26,246.15,6.6015]
[1737606337356,27.5,246.21,246.07,8.1782]
[1737606337529,20.0,246.21,246.18,11.88565699]
[1737606337843,0.76173811,246.24,246.2,11.88565699]
[1737606338435,0.76173811,246.24,246.18,11.88565699]
[1737606339143,4.0612,246.23,246.18,11.88565699]
[1737606339353,0.76174968,246.22,246.18,11.88565699]
[1737606340152,20.76174968,246.22,246.18,11.88565699]
[1737606340627,4.0615,246.21,246.18,11.88565699]
[1737606340826,0.76178374,246.2,246.14,11.88565699]
[1737606341124,20.14744073,246.2,246.12,11.88565699]
[1737606341423,32.03866774,246.2,246.14,11.88565699]
[1737606341622,23.776884,246.19,246.14,11.88565699]
[1737606341849,0.76187732,246.18,246.14,11.88565699]
[1737606342644,0.76187732,246.18,246.12,11.88565699]
[1737606342645,4.0622,246.17,246.12,11.88565699]
[1737606342820,0.76193529,246.16,246.12,11.88565699]
[1737606343247,12.5,246.13,246.08,11.88565699]
[1737606343446,24.53900125,246.12,246.07,0.03]
[1737606344846,4.0632,246.11,246.07,0.03]
[1737606345048,0.76214887,246.1,246.07,0.03]
[1737606345951,23.776884,246.09,246.07,0.03]
[1737606346130,29.53914351,246.08,246.07,0.0001]
[1737606346455,0.76225951,246.08,246.07,0.0001]
[1737606346953,28.60284351,246.08,246.07,0.0001]
[1737606347150,4.0637,246.08,246.07,0.0001]
[1737606347340,0.76212716,246.16,246.07,0.0001]
[1737606347651,4.0625,246.16,246.12,11.88565699]
[1737606348032,0.76189037,246.15,246.12,11.88565699]
[1737606348651,4.82444655,246.16,246.12,11.88565699]
[1737606348951,23.776884,246.15,246.12,11.88565699]
[1737606349152,0.76201639,246.14,246.12,11.88565699]
[1737606349352,23.776884,246.15,246.12,11.88565699]
[1737606349353,0.76200941,246.15,246.12,11.88565699]
[1737606350545,0.76200941,246.15,246.1,11.88565699]
[1737606350746,4.0627,246.14,246.1,11.88565699]
[1737606350950,29.53893319,246.13,246.08,11.88565699]
[1737606351137,5.0,246.11,246.07,0.0001]
[1737606351450,24.53904477,246.1,246.07,0.0001]
[1737606351655,23.776884,246.08,246.07,0.0001]
[1737606351829,32.0391795,246.08,246.07,0.0001]
[1737606352758,28.6028795,246.08,246.07,0.0001]
[1737606357561,4.0637,246.08,246.07,0.0001]
[1737606357966,4.1265,246.1,246.07,0.0001]
[1737606358264,4.1265,246.1,246.07,11.88575699]
[1737606358468,4.88862974,246.1,246.07,11.88575699]
[1737606358655,23.776884,246.09,246.07,11.88575699]
[1737606358976,4.0637,246.08,246.07,11.88575699]
[1737606359142,28.60277735,246.08,246.07,0.0001]
[1737606361985,40.48843434,246.08,246.07,0.0001]
[1737606362190,28.60277735,246.08,246.07,0.0001]
[1737606362492,4.82589335,246.08,246.07,0.0001]
[1737606362793,0.063,246.1,246.07,0.0001]
[1737606362794,4.1264,246.1,246.07,0.0001]
[1737606364171,4.1264,246.1,246.08,11.88565699]
[1737606364172,0.063,246.1,246.08,11.88565699]
[1737606366406,0.063,246.1,246.09,4.0635]
[1737606366692,0.76173151,246.25,246.12,20.0]
[1737606366989,8.1237,246.29,246.24,11.88565699]
[1737606367181,0.76161058,246.31,246.28,11.88565699]
[1737606367383,0.76149458,246.36,246.3,11.88565699]
[1737606367597,20.063,246.35,246.3,11.88565699]
[1737606367789,0.76134144,246.34,246.28,11.88565699]
[1737606367990,11.88565699,246.3,246.21,11.88565699]
[1737606368289,0.76159535,246.29,246.21,11.88565699]
[1737606368497,4.82199535,246.29,246.21,11.88565699]
[1737606369290,35.66254099,246.28,246.19,11.88565699]
[1737606369591,0.76163246,246.27,246.19,11.88565699]
[1737606370088,23.776884,246.26,246.19,11.88565699]
[1737606370294,0.76171648,246.25,246.17,11.88565699]
[1737606370488,4.061,246.24,246.17,11.88565699]
[1737606370689,0.76170707,246.24,246.19,11.88565699]
[1737606370997,0.76167154,246.27,246.21,11.88565699]
[1737606371189,4.82227154,246.27,246.21,11.88565699]
[1737606371390,23.776884,246.26,246.21,11.88565699]
[1737606371577,0.76167847,246.25,246.21,11.88565699]
[1737606372098,0.76167847,246.25,246.17,11.88565699]
[1737606372099,23.776884,246.24,246.17,11.88565699]
[1737606372299,0.76176151,246.23,246.17,11.88565699]
[1737606372599,4.0614,246.22,246.17,11.88565699]
[1737606372784,0.76176713,246.21,246.19,11.88565699]
[1737606372990,0.7617383,246.27,246.19,11.88565699]
[1737606373293,0.7617383,246.27,246.07,0.0001]
[1737606373294,23.776884,246.2,246.13,11.88565699]
[1737606373601,0.76193957,246.19,246.11,11.88565699]
[1737606374120,23.776884,246.18,246.13,11.88565699]
[1737606374400,27.839184,246.16,246.09,11.88565699]
[1737606374578,0.76200798,246.15,246.09,11.88565699]
[1737606374780,0.76197249,246.21,246.14,11.88565699]
[1737606375090,4.0617,246.2,246.16,11.88565699]
[1737606375392,4.82290386,246.24,246.18,11.88565699]
[1737606375571,0.76169436,246.28,246.2,11.88565699]
[1737606375772,4.82219436,246.28,246.22,11.88565699]
[1737606376373,0.82463043,246.35,246.26,11.88565699]
[1737606376574,0.82463043,246.35,246.28,11.88565699]
[1737606376771,0.82463043,246.35,246.3,11.88565699]
[1737606376977,4.88393043,246.35,246.3,11.88565699]
[1737606378897,23.776884,246.34,246.28,11.88565699]
[1737606379095,20.0,246.3,246.23,11.88565699]
[1737606379281,0.76158599,246.29,246.23,11.88565699]
[1737606380071,4.0604,246.28,246.23,11.88565699]
[1737606380299,0.76159779,246.27,246.23,11.88565699]
[1737606380975,0.76159779,246.27,246.21,11.88565699]
[1737606381480,0.76159779,246.27,246.23,11.88565699]
[1737606382099,0.76159779,246.27,246.21,11.88565699]
[1737606382299,23.776884,246.25,246.17,18.01815699]
[1737606382599,18.46375699,246.44,246.24,23.77131398]
[1737606382808,0.82419577,246.4,246.33,11.88565699]
[1737606383013,0.063,246.4,246.33,11.88565699]
[1737606383308,0.82412021,246.4,246.33,11.88565699]
[1737606383683,4.0594,246.34,246.33,11.88565699]
[1737606383887,4.0591,246.36,246.33,11.88565699]
[1737606384078,0.76128632,246.38,246.33,11.88565699]
[1737606384499,4.1223,246.35,246.31,11.88565699]
[1737606384802,0.063,246.35,246.33,11.88565699]
[1737606385786,0.063,246.35,246.33,18.97715559]
[1737606385985,4.0594,246.34,246.3,18.97715559]
[1737606386679,4.0594,246.34,246.26,18.97715559]
[1737606386680,24.53821862,246.33,246.26,18.97715559]
[1737606386894,18.97715559,246.32,246.23,18.97715559]
[1737606387098,0.76149468,246.31,246.25,18.97715559]
[1737606387501,0.76149468,246.31,246.23,18.97715559]
[1737606388197,0.76151195,246.3,246.23,18.97715559]
[1737606388395,4.0602,246.29,246.23,18.97715559]
[1737606389578,0.76149409,246.3,246.25,18.97715559]
[1737606389908,4.0595,246.33,246.27,18.97715559]
[1737606390900,24.53825402,246.32,246.25,18.97715559]
[1737606391086,43.51540961,246.32,246.23,18.97715559]
[1737606391586,23.776884,246.27,246.19,18.97715559]
[1737606391799,19.73879722,246.26,246.17,25.10965559]
[1737606391993,19.73879722,246.26,246.17,18.97715559]
[1737606392804,4.0609,246.25,246.17,18.97715559]
[1737606392997,0.76167799,246.24,246.17,18.97715559]
[1737606393397,4.0609,246.25,246.19,18.97715559]
[1737606393588,4.0609,246.25,246.21,18.97715559]
[1737606393786,0.7615225,246.32,246.23,18.97715559]
[1737606393995,4.0602,246.3,246.27,18.97715559]
[1737606394708,0.8244146,246.35,246.27,18.97715559]
[1737606394888,23.776884,246.33,246.27,18.97715559]
[1737606395083,4.0594,246.34,246.16,9.1537]
[1737606395084,23.776884,246.31,246.23,18.97715559]
[1737606395406,0.76151833,246.3,246.23,18.97715559]
[1737606396001,23.776884,246.29,246.23,18.97715559]
[1737606396220,19.73867052,246.28,246.19,18.97715559]
[1737606396387,23.776884,246.27,246.19,18.97715559]
[1737606396590,23.776884,246.25,246.19,18.97715559]
[1737606396815,4.0612,246.23,246.19,18.97715559]
[1737606396988,0.76172028,246.22,246.17,18.97715559]
[1737606397403,0.76172028,246.22,246.15,18.97715559]
[1737606397988,0.76172028,246.22,246.17,18.97715559]
[1737606398836,4.0615,246.21,246.17,18.97715559]
[1737606399038,4.0615,246.21,246.15,18.97715559]
[1737606402034,0.76172028,246.22,246.15,18.97715559]
[1737606402209,10.1514,246.28,246.19,18.97715559]
[1737606402210,4.0607,246.26,246.19,18.97715559]
[1737606402403,4.82232808,246.26,246.19,18.97715559]
[1737606402620,4.0607,246.26,246.19,18.97715559]
[1737606403221,4.0605,246.28,246.21,18.97715559]
[1737606405044,4.0605,246.28,246.23,18.97715559]
[1737606407609,0.063,246.33,246.27,18.97715559]
[1737606407817,0.063,246.33,246.32,18.97715559]
[1737606410013,0.063,246.33,246.3,18.97715559]
[1737606412938,4.1226,246.33,246.3,18.97715559]
[1737606413236,0.063,246.33,246.3,18.97715559]
[1737606414526,4.88393747,246.33,246.26,18.97715559]
[1737606415039,18.97715559,246.32,246.24,18.97715559]
[1737606415239,0.7614581,246.31,246.24,18.97715559]
[1737606416146,0.7614581,246.31,246.2,18.97715559]
[1737606416147,18.97715559,246.3,246.2,18.97715559]
[1737606416438,0.76158687,246.29,246.22,18.97715559]
[1737606416635,0.76151417,246.32,246.26,18.97715559]
[1737606417322,4.0599,246.31,246.26,18.97715559]
[1737606417841,4.0599,246.31,246.23,18.97715559]
[1737606418627,0.76146906,246.3,246.23,18.97715559]
[1737606419521,4.82166906,246.3,246.23,18.97715559]
[1737606420237,4.82166906,246.3,246.19,4.0618]
[1737606420238,18.97715559,246.26,246.19,18.97715559]
[1737606420454,18.97715559,246.24,246.15,18.97715559]
[1737606420622,18.97715559,246.22,246.13,18.97715559]
[1737606421043,0.7617415,246.21,246.13,18.97715559]
[1737606421544,4.0615,246.21,246.13,18.97715559]
[1737606422142,0.76173072,246.2,246.13,18.97715559]
[1737606422548,0.76173072,246.2,246.11,18.97715559]
[1737606422549,19.73888631,246.2,246.11,18.97715559]
[1737606422847,23.776884,246.19,246.11,18.97715559]
[1737606423141,23.776884,246.17,246.1,0.03]
[1737606423339,23.776884,246.15,246.1,0.03]
[1737606423543,4.0628,246.13,246.1,0.03]
[1737606423736,24.53889445,246.12,246.1,0.03]
[1737606424447,43.51605004,246.12,246.1,0.03]
[1737606425339,24.53889445,246.12,246.1,0.03]
[1737606425541,28.60209445,246.12,246.1,0.03]
[1737606425935,47.57925004,246.12,246.1,0.03]
[1737606427841,0.76201045,246.12,246.1,0.03]
[1737606428028,0.76205882,246.13,246.1,0.03]
[1737606428228,4.82495882,246.13,246.1,0.03]
[1737606428552,42.75403959,246.12,246.1,0.03]
[1737606428727,24.53901372,246.11,246.1,0.03]
[1737606429643,23.776884,246.08,246.07,0.0001]
[1737606429846,43.51647818,246.08,246.07,0.0001]
[1737606431646,24.53932259,246.08,246.07,0.0001]
[1737606431847,18.97715559,246.12,246.07,0.0001]
[1737606432147,0.76209099,246.11,246.1,0.03]
[1737606432538,24.53897499,246.11,246.1,0.03]
[1737606434462,29.53897499,246.11,246.1,0.03]
[1737606434761,20.0,246.08,246.07,0.0001]
[1737606434933,68.51643655,246.08,246.07,0.0001]
[1737606435134,76.65603655,246.08,246.07,0.0001]
[1737606435341,23.776884,246.03,246.0,2.0]
[1737606435654,42.75403959,246.01,246.0,2.0]
[1737606436641,46.81883959,246.01,246.0,2.0]
[1737606439348,47.58143329,246.01,246.0,2.0]
[1737606441946,47.58143329,246.01,245.83,20.0]
[1737606441947,5.0,245.89,245.83,20.0]
[1737606442155,5.0,245.89,245.87,18.97715559]
[1737606442564,5.0,245.81,245.79,18.97715559]
[1737606442763,5.0,245.81,245.77,23.04585559]
[1737606442979,23.97715559,245.79,245.71,18.97715559]
[1737606443261,8.9906061,245.66,245.61,18.97715559]
[1737606443454,27.96776169,245.68,245.54,19.7701269]
[1737606443759,5.0,245.7,245.63,18.97715559]
[1737606443941,18.97715559,245.72,245.65,18.97715559]
[1737606444147,8.9906061,245.75,245.67,18.97715559]
[1737606444344,5.0,245.65,245.62,18.97715559]
[1737606444661,5.0,245.58,245.54,18.97715559]
[1737606444862,5.0,245.56,245.52,18.97715559]
[1737606445056,5.0,245.56,245.5,63.18493364]
[1737606445057,5.0,245.53,245.5,63.18493364]
[1737606445563,5.0,245.53,245.49,18.97715559]
[1737606445757,5.0,245.51,245.47,18.97715559]
[1737606445968,3.9906061,245.52,245.47,18.97715559]
[1737606446265,3.9906061,245.56,245.49,18.97715559]
[1737606446452,3.9906061,245.54,245.49,18.97715559]
[1737606446655,5.0,245.59,245.53,18.97715559]
[1737606446849,5.0,245.62,245.55,18.97715559]
[1737606447055,3.9906061,245.61,245.55,18.97715559]
[1737606447267,5.0,245.65,245.57,18.97715559]
[1737606447446,5.0,245.62,245.57,18.97715559]
[1737606447647,3.9906061,245.61,245.55,18.97715559]
[1737606447846,5.0,245.6,245.53,18.97715559]
[1737606448069,3.9906061,245.61,245.54,4.0726]
[1737606448268,5.0,245.6,245.54,4.0726]
[1737606448451,3.9906061,245.57,245.53,18.97715559]
[1737606448654,18.97715559,245.6,245.51,18.97715559]
[1737606448856,5.0,245.62,245.55,18.97715559]
[1737606449166,8.9906061,245.62,245.55,18.97715559]
[1737606449373,27.96776169,245.66,245.57,18.97715559]
[1737606449554,6.10411728,245.64,245.61,18.97715559]
[1737606449863,5.0,245.63,245.57,18.97715559]